[Event "Oslo Chess Festival 2017"]
[Site "Oslo"]
[Date "2017.10.04"]
[Round "7"]
[White "Grover, Sigurd Loe"]
[Black "Efroimski, Marsel"]
[Result "0-1"]
[ECO "B13"]
[WhiteElo "1816"]
[BlackElo "2331"]
[Annotator "NA"]
[PlyCount "22"]
[EventDate "2017.??.??"]
[EventType "swiss"]
[EventCountry "NOR"]
[SourceTitle "playchess.com"]
[Source "ChessBase"]
[SourceQuality "1"]
[TimeControl "5400+30"]

1. e4 {[%emt 0:00:12]} c6 {[%emt 0:00:43]} 2. d4 {[%emt 0:00:08]} d5 {[%emt 0:00:04]} 3. exd5 {[%emt 0:00:30]} cxd5 {[%emt 0:00:03]} 4. Bd3 {[%emt 0:00:08]} Nc6 {[%emt 0:00:13]} 5. c3 {[%emt 0:00:09]} Qc7 {[%emt 0:01:22]} 6. Ne2 {[%emt 0:00:11]} Nf6 {[%emt 0:00:30]} 7. Bf4 {[%emt 0:00:13]} e5 {[%emt 0:00:28]} 8. dxe5 {[%emt 0:00:06]} Nxe5 {[%emt 0:00:31]} 9. O-O {[%emt 0:01:40]} Bd6 {[%emt 0:00:51]} 10. Na3 {[%emt 0:17:22]} a6 {[%emt 0:00:31]} 11. Qa4+ {[%emt 0:00:49]} Bd7 {[%emt 0:23:47]} 0-1

[Event "Oslo Chess Festival 2017"]
[Site "Oslo"]
[Date "2017.10.04"]
[Round "7"]
[White "Markussen, Petter B"]
[Black "Nordquelle, Daniel"]
[Result "1-0"]
[ECO "B25"]
[WhiteElo "1756"]
[BlackElo "2203"]
[Annotator "NA"]
[PlyCount "31"]
[EventDate "2017.??.??"]
[EventType "swiss"]
[EventCountry "NOR"]
[SourceTitle "playchess.com"]
[Source "ChessBase"]
[SourceQuality "1"]
[TimeControl "5400+30"]

1. e4 {[%emt 0:00:01]} c5 {[%emt 0:00:07]} 2. Nc3 {[%emt 0:00:08]} d6 {[%emt 0:00:12]} 3. g3 {[%emt 0:00:36]} Nc6 {[%emt 0:00:12]} 4. Bg2 {[%emt 0:00:04]} g6 {[%emt 0:00:09]} 5. d3 {[%emt 0:01:06]} Bg7 {[%emt 0:00:08]} 6. Nh3 {[%emt 0:01:41]} e6 {[%emt 0:02:07]} 7. Bd2 {[%emt 0:04:13]} Nge7 {[%emt 0:00:13]} 8. Qc1 {[%emt 0:03:43]} h6 {[%emt 0:01:49]} 9. O-O {[%emt 0:04:29]} Rb8 {[%emt 0:00:19]} 10. f4 {[%emt 0:01:19]} f5 {[%emt 0:04:17]} 11. Ne2 {[%emt 0:08:07]} d5 {[%emt 0:05:49]} 12. e5 {[%emt 0:03:00]} d4 {[%emt 0:00:36]} 13. Nf2 {[%emt 0:00:30]} O-O {[%emt 0:00:25]} 14. Kh1 {[%emt 0:02:17]} Nd5 {[%emt 0:00:53]} 15. g4 {[%emt 0:00:57]} Nce7 {[%emt 0:07:53]} 16. Ng3 $15 {[%emt 0:01:18]} 1-0